fUST/lending_fUST_20240919
["ID","MTS","AMOUNT","RATE_DAILY","PERIOD"]
[338477053,1726686649472,-501.02223224,0.00019178,2]
[338477054,1726686649483,-151.0,0.00019178,2]
[338477055,1726686649494,-151.0,0.00019178,2]
[338477056,1726686649504,-151.0,0.00019178,2]
[338477057,1726686649516,-151.0,0.00019178,2]
[338477058,1726686649527,-500.0,0.00019178,2]
[338477059,1726686649538,-1671.03,0.00019178,2]
[338477060,1726686649548,-500.0,0.00019178,2]
[338477061,1726686649559,-500.0,0.00019178,2]
[338477062,1726686649569,-2106.84,0.00019178,2]
[338477063,1726686649578,-500.0,0.00019178,2]
[338477064,1726686649587,-611.78,0.00019178,2]
[338477065,1726686649596,-500.0,0.00019178,2]
[338477066,1726686649606,-500.0,0.00019178,2]
[338477067,1726686649615,-500.0,0.00019178,2]
[338477068,1726686649624,-500.0,0.00019178,2]
[338477069,1726686649635,-500.0,0.00019178,2]
[338477070,1726686649644,-309.26441141,0.00019178,2]
[338477071,1726686649654,-618.38,0.00019178,2]
[338477072,1726686649664,-500.0,0.00019178,2]
[338477073,1726686649674,-3269.53,0.00019178,2]
[338477074,1726686649683,-442.27621167,0.00019178,2]
[338477075,1726686649693,-151.365838,0.00019178,2]
[338477076,1726686649703,-500.0,0.00019178,2]
[338477077,1726686649712,-524.05,0.00019178,2]
[338477078,1726686649722,-1023.67,0.00019178,2]
[338477079,1726686649731,-500.0,0.00019178,2]
[338477080,1726686649741,-1768.57,0.00019178,2]
[338477081,1726686649751,-1569.52,0.00019178,2]
[338477082,1726686649761,-1535.4,0.00019178,2]
[338477083,1726686649770,-505.57,0.00019178,2]
[338477084,1726686649780,-823.0,0.00019178,2]
[338477085,1726686649791,-500.0,0.00019178,2]
[338477086,1726686649800,-500.0,0.00019178,2]
[338477087,1726686649811,-500.0,0.00019178,2]
[338477088,1726686649820,-500.0,0.00019178,2]
[338477089,1726686649830,-1057.36,0.00019178,2]
[338477090,1726686649839,-500.0,0.00019178,2]
[338477091,1726686649848,-500.0,0.00019178,2]
[338477092,1726686649858,-500.0,0.00019178,2]
[338477093,1726686649867,-555.56,0.00019178,2]
[338477094,1726686649877,-500.0,0.00019178,2]
[338477095,1726686649886,-500.0,0.00019178,2]
[338477096,1726686649896,-151.0,0.00019178,2]
[338477097,1726686649905,-336.1569069,0.00019178,2]
[338477098,1726686649915,-500.0,0.00019178,2]
[338477099,1726686649924,-934.75,0.00019178,2]
[338477100,1726686649934,-500.0,0.00019178,2]
[338477101,1726686649943,-500.0,0.00019178,2]
[338477102,1726686649952,-2520.38,0.00019178,2]
[338477103,1726686649962,-500.0,0.00019178,2]
[338477104,1726686649989,-500.0,0.00019178,2]
[338477105,1726686649999,-643.54,0.00019178,2]
[338477106,1726686650011,-535.02,0.00019178,2]
[338477107,1726686650022,-500.0,0.00019178,2]
[338477108,1726686650031,-500.0,0.00019178,2]
[338477109,1726686650041,-500.0,0.00019178,2]
[338477110,1726686650050,-500.0,0.00019178,2]
[338477111,1726686650060,-500.0,0.00019178,2]
[338477112,1726686650069,-500.0,0.00019178,2]
[338477113,1726686650079,-450.557955,0.00019178,2]
[338477114,1726686650088,-450.557955,0.00019178,2]
[338477115,1726686650097,-500.0,0.00019178,2]
[338477116,1726686650106,-500.0,0.00019178,2]
[338477117,1726686650116,-2096.31,0.00019178,2]
[338477118,1726686650124,-1783.24,0.00019178,2]
[338477119,1726686650134,-3090.01,0.00019178,2]
[338477120,1726686650143,-398.38322423,0.00019178,2]
[338477121,1726686650153,-450.557955,0.00019178,2]
[338477122,1726686650163,-500.0,0.00019178,2]
[338477123,1726686650172,-450.557955,0.00019178,2]
[338477124,1726686650181,-450.557955,0.00019178,2]
[338477125,1726686650190,-500.0,0.00019178,2]
[338477126,1726686650200,-450.557955,0.00019178,2]
[338477127,1726686650209,-500.0,0.00019178,2]
[338477128,1726686650218,-450.557955,0.00019178,2]
[338477129,1726686650229,-500.0,0.00019178,2]
[338477130,1726686650239,-450.557955,0.00019178,2]
[338477131,1726686650249,-450.557955,0.00019178,2]
[338477132,1726686650259,-500.0,0.00019178,2]
[338477133,1726686650268,-500.0,0.00019178,2]
[338477134,1726686650278,-500.0,0.00019178,2]
[338477135,1726686650287,-535.58,0.00019178,2]
[338477136,1726686650296,-894.89,0.00019178,2]
[338477137,1726686650306,-500.0,0.00019178,2]
[338477138,1726686650316,-1927.47,0.00019178,2]
[338477139,1726686650327,-500.0,0.00019178,2]
[338477140,1726686650336,-500.0,0.00019178,2]
[338477141,1726686650345,-500.0,0.00019178,2]
[338477142,1726686650355,-500.0,0.00019178,2]
[338477143,1726686650365,-542.31879306,0.00019178,2]
[338477144,1726686650373,-690.37,0.00019178,2]
[338477145,1726686650382,-500.0,0.00019178,2]
[338477146,1726686650392,-530.21,0.00019178,2]
[338477147,1726686650402,-2652.94,0.00019178,2]
[338477148,1726686650412,-500.0,0.00019178,2]
[338477149,1726686650421,-500.0,0.00019178,2]
[338477150,1726686650431,-500.0,0.00019178,2]
[338477151,1726686650440,-190.182688,0.00019178,2]
[338477152,1726686650449,-190.182688,0.00019178,2]
[338477153,1726686650459,-190.182688,0.00019178,2]
[338477154,1726686650468,-190.182688,0.00019178,2]
[338477155,1726686650493,-190.182688,0.00019178,2]
[338477156,1726686650503,-500.0,0.00019178,2]
[338477157,1726686650512,-500.0,0.00019178,2]
[338477158,1726686650521,-500.0,0.00019178,2]
[338477159,1726686650530,-500.0,0.00019178,2]
[338477160,1726686650539,-190.182688,0.00019178,2]
[338477161,1726686650548,-500.0,0.00019178,2]
[338477162,1726686650558,-190.182688,0.00019178,2]
[338477163,1726686650567,-2301.41,0.00019178,2]
[338477164,1726686650577,-190.182688,0.00019178,2]
[338477165,1726686650587,-190.182688,0.00019178,2]
[338477166,1726686650596,-1080.21,0.00019178,2]
[338477167,1726686650606,-500.0,0.00019178,2]
[338477168,1726686650616,-190.182688,0.00019178,2]
[338477169,1726686650625,-190.182688,0.00019178,2]
[338477170,1726686650635,-500.0,0.00019178,2]
[338477171,1726686650645,-190.182688,0.00019178,2]
[338477172,1726686650654,-500.0,0.00019178,2]
[338477173,1726686650664,-229.65646033,0.00019178,2]
[338477174,1726686650673,-500.0,0.00019178,2]
[338477175,1726686650683,-500.0,0.00019178,2]
[338477176,1726686650692,-151.0,0.00019178,2]
[338477177,1726686650701,-500.0,0.00019178,2]
[338477178,1726686650711,-151.0,0.00019178,2]
[338477179,1726686650721,-151.0,0.00019178,2]
[338477180,1726686650732,-151.0,0.00019178,2]
[338477181,1726686650743,-500.0,0.00019178,2]
[338477182,1726686650754,-151.0,0.00019178,2]
[338477183,1726686650763,-708.89,0.00019178,2]
[338477184,1726686650773,-151.0,0.00019178,2]
[338477185,1726686650782,-548.24,0.00019178,2]
[338477186,1726686650792,-151.0,0.00019178,2]
[338477187,1726686650801,-500.0,0.00019178,2]
[338477188,1726686650811,-151.0,0.00019178,2]
[338477189,1726686650821,-151.0,0.00019178,2]
[338477190,1726686650831,-151.0,0.00019178,2]
[338477191,1726686650840,-151.0,0.00019178,2]
[338477192,1726686650850,-711.68,0.00019178,2]
[338477193,1726686650860,-151.0,0.00019178,2]
[338477194,1726686650869,-300.624336,0.00019178,2]
[338477195,1726686650879,-151.0,0.00019178,2]
[338477196,1726686650889,-300.624336,0.00019178,2]
[338477197,1726686650898,-151.0,0.00019178,2]
[338477198,1726686650908,-2067.36,0.00019178,2]
[338477199,1726686650917,-300.624336,0.00019178,2]
[338477200,1726686650927,-229.411902,0.00019178,2]
[338477201,1726686650936,-300.624336,0.00019178,2]
[338477202,1726686650946,-300.624336,0.00019178,2]
[338477203,1726686650955,-300.624336,0.00019178,2]
[338477204,1726686650964,-300.624336,0.00019178,2]
[338477205,1726686650982,-500.0,0.00019178,2]
[338477206,1726686650996,-300.624336,0.00019178,2]
[338477207,1726686651005,-1679.31,0.00019178,2]
[338477208,1726686651016,-646.63566128,0.00019178,2]
[338477209,1726686651026,-300.624336,0.00019178,2]
[338477210,1726686651036,-300.624336,0.00019178,2]
[338477211,1726686651045,-300.624336,0.00019178,2]
[338477212,1726686651054,-500.0,0.00019178,2]
[338477213,1726686651064,-300.624336,0.00019178,2]
[338477214,1726686651073,-300.624336,0.00019178,2]
[338477215,1726686651083,-300.624336,0.00019178,2]
[338477216,1726686651093,-163.5912942,0.00019178,2]
[338477217,1726686651102,-156.926357,0.00019178,2]
[338477218,1726686651111,-1721.91,0.00019178,2]
[338477219,1726686651120,-633.61,0.00019178,2]
[338477220,1726686651130,-500.0,0.00019178,2]
[338477221,1726686651139,-578.82,0.00019178,2]
[338477222,1726686651148,-500.0,0.00019178,2]
[338477223,1726686651158,-1107.4,0.00019178,2]
[338477224,1726686651167,-269.979316,0.00019178,2]
[338477225,1726686651176,-500.0,0.00019178,2]
[338477226,1726686651185,-269.979316,0.00019178,2]
[338477227,1726686651194,-269.979316,0.00019178,2]
[338477228,1726686651203,-269.979316,0.00019178,2]
[338477229,1726686651213,-269.979316,0.00019178,2]
[338477230,1726686651231,-269.979316,0.00019178,2]
[338477231,1726686651250,-269.979316,0.00019178,2]
[338477232,1726686651259,-156.926357,0.00019178,2]
[338477233,1726686651268,-269.979316,0.00019178,2]
[338477234,1726686651277,-269.979316,0.00019178,2]
[338477235,1726686651287,-156.926357,0.00019178,2]
[338477236,1726686651296,-269.979316,0.00019178,2]
[338477237,1726686651306,-156.926357,0.00019178,2]
[338477238,1726686651315,-269.979316,0.00019178,2]
[338477239,1726686651325,-156.926357,0.00019178,2]
[338477240,1726686651337,-269.979316,0.00019178,2]
[338477241,1726686651347,-156.926357,0.00019178,2]
[338477242,1726686651356,-156.926357,0.00019178,2]
[338477243,1726686651366,-500.0,0.00019178,2]
[338477244,1726686651376,-500.0,0.00019178,2]
[338477245,1726686651385,-269.979316,0.00019178,2]
[338477246,1726686651394,-269.979316,0.00019178,2]
[338477247,1726686651404,-500.0,0.00019178,2]
[338477248,1726686651413,-666.8,0.00019178,2]
[338477249,1726686651423,-500.0,0.00019178,2]
[338477250,1726686651432,-500.0,0.00019178,2]
[338477251,1726686651442,-500.0,0.00019178,2]
[338477252,1726686651452,-500.0,0.00019178,2]
[338477253,1726686651462,-500.0,0.00019178,2]
[338477254,1726686651480,-500.0,0.00019178,2]
[338477255,1726686651491,-500.0,0.00019178,2]
[338477256,1726686651500,-396.76,0.00019178,2]
[338477257,1726686651509,-151.0,0.00019178,2]
[338477258,1726686651518,-292.651344,0.00019178,2]
[338477259,1726686651527,-500.0,0.00019178,2]
[338477260,1726686651536,-599.77,0.00019178,2]
[338477261,1726686651545,-500.0,0.00019178,2]
[338477262,1726686651554,-500.0,0.00019178,2]
[338477263,1726686651563,-1709.41,0.00019178,2]
[338477264,1726686651572,-504.38277641,0.00019178,2]
[338477265,1726686651582,-757.3,0.00019178,2]
[338477266,1726686651591,-500.0,0.00019178,2]
[338477267,1726686651600,-500.0,0.00019178,2]
[338477268,1726686651610,-500.0,0.00019178,2]
[338477269,1726686651619,-1073.05,0.00019178,2]
[338477270,1726686651628,-671.23,0.00019178,2]
[338477271,1726686651637,-1420.41,0.00019178,2]
[338477272,1726686651647,-500.0,0.00019178,2]
[338477273,1726686651656,-670.63,0.00019178,2]
[338477274,1726686651665,-500.0,0.00019178,2]
[338477275,1726686651674,-500.0,0.00019178,2]
[338477276,1726686651683,-151.0,0.00019178,2]
[338477277,1726686651692,-500.0,0.00019178,2]
[338477278,1726686651702,-1389.34,0.00019178,2]
[338477279,1726686651711,-500.0,0.00019178,2]
[338477280,1726686651722,-626.57,0.00019178,2]
[338477281,1726686651740,-726.41,0.00019178,2]
[338477282,1726686651750,-500.0,0.00019178,2]
[338477283,1726686651760,-500.0,0.00019178,2]
[338477284,1726686651769,-500.0,0.00019178,2]
[338477285,1726686651779,-1625.64,0.00019178,2]
[338477286,1726686651788,-697.32,0.00019178,2]
[338477287,1726686651797,-1101.39,0.00019178,2]
[338477288,1726686651806,-544.0,0.00019178,2]
[338477289,1726686651815,-151.0,0.00019178,2]
[338477290,1726686651825,-151.0,0.00019178,2]
[338477291,1726686651834,-151.0,0.00019178,2]
[338477292,1726686651843,-151.0,0.00019178,2]
[338477293,1726686651853,-151.0,0.00019178,2]
[338477294,1726686651863,-500.0,0.00019178,2]
[338477295,1726686651872,-151.0,0.00019178,2]
[338477296,1726686651881,-500.0,0.00019178,2]
[338477297,1726686651890,-151.0,0.00019178,2]
[338477298,1726686652076,-500.0,0.00019178,2]
[338477299,1726686652086,-151.0,0.00019178,2]
[338477300,1726686652096,-151.0,0.00019178,2]
[338477301,1726686652105,-1403.14,0.00019178,2]
[338477302,1726686652115,-676.12,0.00019178,2]
[338477303,1726686652124,-151.0,0.00019178,2]
[338477304,1726686652133,-151.0,0.00019178,2]
[338477305,1726686652142,-240.644875,0.00019178,2]
[338477306,1726686652151,-151.0,0.00019178,2]
[338477307,1726686652161,-500.0,0.00019178,2]
[338477308,1726686652171,-4730.14,0.00019178,2]
[338477309,1726686652180,-4730.14,0.00019178,2]
[338477310,1726686652189,-4730.14,0.00019178,2]
[338477311,1726686652199,-4730.14,0.00019178,2]
[338477312,1726686652208,-1683.54,0.00019178,2]
[338477313,1726686652220,-4730.14,0.00019178,2]
[338477314,1726686652239,-500.0,0.00019178,2]
[338477315,1726686652247,-4009.08273854,0.00019178,2]
[338477316,1726686652291,-721.05726146,0.00019178,2]
[338477317,1726686652302,-1336.12118654,0.00019178,2]
[338477323,1726687614150,-246.04976183,0.00017288,2]
[338477409,1726687833199,-300.0,0.00017288,2]
[338477410,1726687833209,-300.0,0.00017288,2]
[338477411,1726687833218,-3921.45537946,0.00017289,2]
[338477412,1726687833273,-19424.75319744,0.00017289,2]
[338477413,1726687833291,-168.5902036,0.0001749,2]
[338477414,1726687833300,-337.268811,0.00017808,2]
[338477415,1726687833309,-1080.3379956,0.00018145,2]
[338477416,1726687833318,-244.2964897,0.000184,2]
[338477417,1726687833327,-153.0,0.000184,2]
[338477418,1726687833336,-208.739459,0.000184,2]
[338477419,1726687833345,-208.739459,0.000184,2]
[338477420,1726687833354,-600.0,0.00018411,2]
[338477421,1726687833362,-1894.12751449,0.00018447,2]
[338477422,1726687833371,-153.0,0.000185,2]
[338477423,1726687833381,-2730.06937022,0.00018503,2]
[338477424,1726687833391,-6489.84294532,0.00018507,2]
[338477425,1726687833400,-153.0,0.00018578,2]
[338477426,1726687833409,-153.0,0.00018578,2]
[338477427,1726687833418,-600.0,0.00018603,2]
[338477428,1726687833426,-1080.3379956,0.00018645,2]
[338477429,1726687833435,-208.739459,0.00018678,2]
[338477430,1726687833444,-153.0,0.00018678,2]
[338477431,1726687833455,-208.739459,0.00018678,2]
[338477432,1726687833464,-301.4649847,0.00018678,2]
[338477433,1726687833474,-153.0,0.00018678,2]
[338477434,1726687833483,-6489.84294532,0.00018794,2]
[338477435,1726687833493,-600.0,0.00018794,2]
[338477436,1726687833502,-210.84545312,0.00018819,2]
[338477437,1726687833513,-1000.0,0.00018819,2]
[338477438,1726687833531,-420.0,0.00018877,2]
[338477439,1726687833540,-210.84545309,0.00018884,2]
[338477440,1726687833550,-98555.3522069,0.00018897,3]
[338477441,1726687833559,-500.57,0.00018897,3]
[338477442,1726687833568,-153.0,0.000189,2]
[338477443,1726687833578,-3000.0,0.000189,2]
[338477444,1726687833587,-150.112233,0.000189,2]
[338477445,1726687833596,-150.112233,0.000189,2]
[338477446,1726687833605,-273.04636843,0.00018903,2]
[338477447,1726687833616,-78125.3976935,0.00018907,3]
[338477448,1726687833625,-166.84,0.00018907,3]
[338477449,1726687833634,-3000.0,0.0001891,2]
[338477450,1726687833644,-3000.0,0.0001892,2]
[338477451,1726687833653,-354.336671,0.00018929,2]
[338477452,1726687833662,-500.0,0.00018929,2]
[338477453,1726687833672,-500.0,0.00018929,2]
[338477454,1726687833681,-500.0,0.00018929,2]
[338477455,1726687833691,-500.0,0.00018929,2]
[338477456,1726687833700,-283.07415788,0.00018929,2]
[338477457,1726687833709,-500.0,0.00018929,2]
[338477458,1726687833718,-500.0,0.00018929,2]
[338477459,1726687833728,-534.20325065,0.00018929,2]
[338477460,1726687833737,-500.0,0.00018929,2]
[338477461,1726687833747,-500.0,0.00018929,2]
[338477462,1726687833756,-500.0,0.00018929,2]
[338477463,1726687833771,-3000.0,0.0001893,2]
[338477464,1726687833780,-49277.6761034,0.0001893,3]
[338477465,1726687833789,-3000.0,0.0001894,2]
[338477466,1726687833799,-1486.65925966,0.0001894,2]
[338477467,1726687833808,-39062.6988468,0.0001894,3]
[338477468,1726687833817,-210.84545309,0.00018949,2]
[338477469,1726687833826,-3000.0,0.0001895,2]
[338477470,1726687833835,-153.0,0.00018952,2]
[338477471,1726687833844,-3000.0,0.0001896,2]
[338477472,1726687833854,-3000.0,0.0001897,2]
[338477473,1726687833864,-49277.6761034,0.0001897,3]
[338477474,1726687833874,-3000.0,0.0001898,2]
[338477475,1726687833883,-39062.6988468,0.0001898,3]
[338477476,1726687833893,-897.39,0.00018986,2]
[338477477,1726687833903,-3000.0,0.0001899,2]
[338477478,1726687833914,-150.112233,0.00019,2]
[338477479,1726687833924,-208.70578,0.00019,2]
[338477480,1726687833933,-3000.0,0.00019,2]
[338477481,1726687833942,-150.112233,0.00019,2]
[338477482,1726687833952,-150.112233,0.00019,2]
[338477483,1726687833962,-150.112233,0.00019,2]
[338477484,1726687833972,-150.112233,0.00019,2]
[338477485,1726687833982,-1000.0,0.00019,19]
[338477486,1726687833991,-1000.0,0.00019,2]
[338477487,1726687834000,-3000.0,0.0001901,2]
[338477488,1726687834011,-210.84545309,0.00019013,2]
[338477489,1726687834021,-420.0,0.00019017,2]
[338477490,1726687834030,-3000.0,0.0001902,2]
[338477491,1726687834040,-49277.6761034,0.0001902,3]
[338477492,1726687834049,-3000.0,0.0001903,2]
[338477493,1726687834061,-3000.0,0.0001904,2]
[338477494,1726687834071,-3000.0,0.0001905,2]
[338477495,1726687834080,-151.0,0.00019058,2]
[338477496,1726687834090,-151.0,0.00019058,2]
[338477497,1726687834100,-175.323761,0.00019058,2]
[338477498,1726687834110,-175.323761,0.00019058,2]
[338477499,1726687834119,-49277.6761034,0.00019058,3]
[338477500,1726687834129,-3000.0,0.0001906,2]
[338477501,1726687834139,-39062.6988468,0.00019068,3]
[338477502,1726687834148,-3000.0,0.0001907,2]
[338477503,1726687834158,-210.84545309,0.00019078,2]
[338477504,1726687834167,-10233.16460195,0.00019078,2]
[338477505,1726687834177,-2411.91857631,0.00019078,2]
[338477506,1726687834187,-3000.0,0.0001908,2]
[338477507,1726687834196,-3000.0,0.0001909,2]
[338477508,1726687834206,-150.112233,0.000191,2]
[338477509,1726687834215,-150.112233,0.000191,2]
[338477510,1726687834225,-150.112233,0.000191,2]
[338477511,1726687834234,-150.112233,0.000191,2]
[338477512,1726687834243,-150.112233,0.000191,2]
[338477513,1726687834252,-150.112233,0.000191,2]
[338477514,1726687834265,-3000.0,0.000191,2]
[338477515,1726687834274,-150.112233,0.000191,2]
[338477516,1726687834282,-150.112233,0.000191,2]
[338477517,1726687834291,-150.112233,0.000191,2]
[338477518,1726687834300,-150.112233,0.000191,2]
[338477519,1726687834309,-150.112233,0.000191,2]
[338477520,1726687834318,-150.112233,0.000191,2]
[338477521,1726687834327,-176.713828,0.000191,2]
[338477522,1726687834337,-3000.0,0.0001911,2]
[338477523,1726687834346,-3000.0,0.0001912,2]
[338477524,1726687834356,-49277.6761034,0.00019128,3]
[338477525,1726687834366,-6489.84294534,0.00019128,2]
[338477526,1726687834374,-3000.0,0.0001913,2]
[338477527,1726687834383,-39062.6988468,0.00019138,3]
[338477528,1726687834393,-151.0,0.00019138,2]
[338477529,1726687834402,-151.0,0.00019138,2]
[338477530,1726687834411,-175.323761,0.00019138,2]
[338477531,1726687834421,-175.323761,0.00019138,2]
[338477532,1726687834430,-3000.0,0.0001914,2]
[338477533,1726687834439,-39062.6988468,0.0001914,3]
[338477534,1726687834449,-1080.3379956,0.00019145,2]
[338477535,1726687834458,-180.418205,0.00019148,2]
[338477536,1726687834468,-180.418205,0.00019148,2]
[338477537,1726687834477,-151.0,0.00019148,2]
[338477538,1726687834486,-151.0,0.00019148,2]
[338477539,1726687834495,-151.0,0.00019148,2]
[338477540,1726687834505,-848.208813,0.00019148,2]
[338477541,1726687834519,-848.208813,0.00019148,2]
[338477542,1726687834528,-151.0,0.00019148,2]
[338477543,1726687834538,-2551.182283,0.00019148,2]
[338477544,1726687834547,-2551.182283,0.00019148,2]
[338477545,1726687834556,-2848.442447,0.00019148,2]
[338477546,1726687834566,-151.0,0.00019148,2]
[338477547,1726687834575,-151.0,0.00019148,2]
[338477548,1726687834585,-151.0,0.00019148,2]
[338477549,1726687834594,-2848.442447,0.00019148,2]
[338477550,1726687834604,-151.0,0.00019148,2]
[338477551,1726687834614,-246.832482,0.00019148,2]
[338477552,1726687834623,-863.741807,0.00019148,2]
[338477553,1726687834632,-246.832482,0.00019148,2]
[338477554,1726687834641,-863.741807,0.00019148,2]
[338477555,1726687834650,-151.0,0.00019148,2]
[338477556,1726687834659,-151.0,0.00019148,2]
[338477557,1726687834668,-151.0,0.00019148,2]
[338477558,1726687834677,-151.0,0.00019148,2]
[338477559,1726687834686,-923.733102,0.00019148,2]
[338477560,1726687834695,-923.733102,0.00019148,2]
[338477561,1726687834704,-500.413116,0.00019148,2]
[338477562,1726687834712,-151.0,0.00019148,2]
[338477563,1726687834721,-500.413116,0.00019148,2]
[338477564,1726687834730,-184.381574,0.00019148,2]
[338477565,1726687834739,-151.0,0.00019148,2]
[338477566,1726687834749,-184.381574,0.00019148,2]
[338477567,1726687834758,-282.399696,0.00019148,2]
[338477568,1726687834772,-151.0,0.00019148,2]
[338477569,1726687834781,-282.399696,0.00019148,2]
[338477570,1726687834791,-608.980635,0.00019148,2]
[338477571,1726687834800,-608.980635,0.00019148,2]
[338477572,1726687834809,-662.708753,0.00019148,2]
[338477573,1726687834818,-662.708753,0.00019148,2]
[338477574,1726687834827,-3000.0,0.0001915,2]
[338477575,1726687834836,-31098.06545875,0.0001915,2]
[338477576,1726687834845,-2977.13514684,0.0001915,2]
[338477577,1726687834854,-151.0,0.0001915,2]
[338477578,1726687834863,-151.0,0.0001915,2]
[338477579,1726687834872,-608.980635,0.0001915,2]
[338477580,1726687834881,-608.980635,0.0001915,2]
[338477581,1726687834890,-151.0,0.00019158,2]
[338477582,1726687834900,-151.0,0.00019158,2]
[338477583,1726687834909,-151.0,0.00019158,2]
[338477584,1726687834919,-157.569046,0.00019158,2]
[338477585,1726687834928,-157.569046,0.00019158,2]
[338477586,1726687834937,-151.0,0.00019158,2]
[338477587,1726687834946,-151.0,0.00019158,2]
[338477588,1726687834956,-151.0,0.00019158,2]
[338477589,1726687834965,-293.746025,0.00019158,2]
[338477590,1726687834974,-1510.796918,0.00019158,2]
[338477591,1726687834984,-151.0,0.00019158,2]
[338477592,1726687834993,-183.01842,0.00019158,2]
[338477593,1726687835003,-241.547887,0.00019158,2]
[338477594,1726687835017,-241.547887,0.00019158,2]
[338477595,1726687835026,-183.01842,0.00019158,2]
[338477596,1726687835035,-151.0,0.00019158,2]
[338477597,1726687835045,-678.537128,0.00019158,2]
[338477598,1726687835055,-678.537128,0.00019158,2]
[338477599,1726687835066,-151.0,0.00019158,2]
[338477600,1726687835075,-151.0,0.00019158,2]
[338477601,1726687835084,-151.0,0.00019158,2]
[338477602,1726687835094,-199.455517,0.00019158,2]
[338477603,1726687835103,-199.455517,0.00019158,2]
[338477604,1726687835113,-193.909956,0.00019158,2]
[338477605,1726687835122,-193.909956,0.00019158,2]
[338477606,1726687835131,-151.0,0.00019158,2]
[338477607,1726687835141,-500.0,0.00019158,2]
[338477608,1726687835152,-3000.0,0.0001916,2]
[338477609,1726687835162,-150.0,0.00019164,2]
[338477610,1726687835172,-524.0,0.00019164,2]
[338477611,1726687835181,-1216.0,0.00019164,2]
[338477612,1726687835191,-997.70527786,0.00019164,2]
[338477613,1726687835200,-6140.31106769,0.00019168,5]
[338477614,1726687835211,-153.727038,0.00019168,2]
[338477615,1726687835222,-151.0,0.00019168,2]
[338477616,1726687835234,-157.569046,0.00019168,2]
[338477617,1726687835245,-157.569046,0.00019168,2]
[338477618,1726687835254,-151.0,0.00019168,2]
[338477619,1726687835266,-151.0,0.00019168,2]
[338477620,1726687835276,-151.0,0.00019168,2]
[338477621,1726687835285,-1510.796918,0.00019168,2]
[338477622,1726687835295,-151.0,0.00019168,2]
[338477623,1726687835304,-183.01842,0.00019168,2]
[338477624,1726687835313,-241.547887,0.00019168,2]
[338477625,1726687835322,-241.547887,0.00019168,2]
[338477626,1726687835332,-183.01842,0.00019168,2]
[338477627,1726687835341,-151.0,0.00019168,2]
[338477628,1726687835351,-678.537128,0.00019168,2]
[338477629,1726687835360,-678.537128,0.00019168,2]
[338477630,1726687835369,-151.0,0.00019168,2]
[338477631,1726687835378,-151.0,0.00019168,2]
[338477632,1726687835388,-151.0,0.00019168,2]
[338477633,1726687835397,-199.455517,0.00019168,2]
[338477634,1726687835406,-199.455517,0.00019168,2]
[338477635,1726687835417,-193.909956,0.00019168,2]
[338477636,1726687835429,-193.909956,0.00019168,2]
[338477637,1726687835439,-151.0,0.00019168,2]
[338477638,1726687835450,-180.418205,0.00019168,2]
[338477639,1726687835461,-180.418205,0.00019168,2]
[338477640,1726687835471,-151.0,0.00019168,2]
[338477641,1726687835481,-247.448684,0.00019168,2]
[338477642,1726687835490,-154.483953,0.00019168,2]